[Event "Titled Tuesday Blitz September 27 Early 2022"]
[White "Balkum, Alexander"]
[Black "Orlov, Georgi"]
[WhiteFideId "2005069"]
[BlackFideId "2011271"]
[WhiteElo "2393"]
[BlackElo "2585"]
[Result "1/2-1/2"]
[Round "10"]
[TimeControl "180+1"]
[Date "2022.09.27"]
[WhiteClock "0:00:09"]
[BlackClock "0:00:13"]

1. e4 {[%clk 0:03:00]}  b6 {[%clk 0:02:58]} 2. d4 {[%clk 0:03:00]}  Bb7 {[%clk 0:02:59]} 3. Nc3 {[%clk 0:03:00]}  e6 {[%clk 0:02:59]} 4. Bd3 {[%clk 0:02:58]}  Nf6 {[%clk 0:02:57]} 5. Nge2 {[%clk 0:02:57]}  d5 {[%clk 0:02:55]} 6. exd5 {[%clk 0:02:50]}  exd5 {[%clk 0:02:45]} 7. O-O {[%clk 0:02:45]}  Be7 {[%clk 0:02:43]} 8. Ng3 {[%clk 0:02:42]}  O-O {[%clk 0:02:39]} 9. Re1 {[%clk 0:02:37]}  Bb4 {[%clk 0:02:30]} 10. Bg5 {[%clk 0:02:34]}  h6 {[%clk 0:02:29]} 11. Bd2 {[%clk 0:02:26]}  c5 {[%clk 0:02:23]} 12. Nf5 {[%clk 0:02:14]}  c4 {[%clk 0:02:20]} 13. Be2 {[%clk 0:01:58]}  Bxc3 {[%clk 0:02:18]} 14. bxc3 {[%clk 0:01:55]}  Ne4 {[%clk 0:02:17]} 15. f3 {[%clk 0:01:35]}  Nxd2 {[%clk 0:02:15]} 16. Qxd2 {[%clk 0:01:36]}  Qf6 {[%clk 0:02:14]} 17. Ng3 {[%clk 0:01:34]}  Nd7 {[%clk 0:01:55]} 18. f4 {[%clk 0:01:34]}  Rfe8 {[%clk 0:01:54]} 19. Bf3 {[%clk 0:01:34]}  g6 {[%clk 0:01:50]} 20. f5 {[%clk 0:01:08]}  Kg7 {[%clk 0:01:39]} 21. Qf4 {[%clk 0:01:02]}  Bc6 {[%clk 0:01:26]} 22. Kf2 {[%clk 0:00:25]}  Ba4 {[%clk 0:01:25]} 23. Qd2 {[%clk 0:00:14]}  Bc6 {[%clk 0:01:22]} 24. Rxe8 {[%clk 0:00:12]}  Rxe8 {[%clk 0:01:21]} 25. Re1 {[%clk 0:00:13]}  Rxe1 {[%clk 0:01:16]} 26. Qxe1 {[%clk 0:00:14]}  Qd6 {[%clk 0:01:08]} 27. Qd2 {[%clk 0:00:11]}  Nf6 {[%clk 0:01:07]} 28. fxg6 {[%clk 0:00:08]}  fxg6 {[%clk 0:01:07]} 29. h4 {[%clk 0:00:09]}  Bd7 {[%clk 0:01:03]} 30. h5 {[%clk 0:00:09]}  g5 {[%clk 0:01:02]} 31. Qe3 {[%clk 0:00:08]}  Be6 {[%clk 0:00:53]} 32. Qe5 {[%clk 0:00:08]}  Qxe5 {[%clk 0:00:52]} 33. dxe5 {[%clk 0:00:09]}  Nd7 {[%clk 0:00:52]} 34. Ke3 {[%clk 0:00:06]}  Nxe5 {[%clk 0:00:52]} 35. Kd4 {[%clk 0:00:06]}  Nc6+ {[%clk 0:00:50]} 36. Ke3 {[%clk 0:00:06]}  Kf6 {[%clk 0:00:50]} 37. Ne2 {[%clk 0:00:06]}  Ke5 {[%clk 0:00:48]} 38. Nd4 {[%clk 0:00:05]}  Nxd4 {[%clk 0:00:48]} 39. cxd4+ {[%clk 0:00:06]}  Kd6 {[%clk 0:00:47]} 40. g4 {[%clk 0:00:06]}  Kc6 {[%clk 0:00:42]} 41. c3 {[%clk 0:00:06]}  Kb5 {[%clk 0:00:41]} 42. Bd1 {[%clk 0:00:05]}  Ka5 {[%clk 0:00:35]} 43. Kd2 {[%clk 0:00:05]}  Bd7 {[%clk 0:00:35]} 44. a3 {[%clk 0:00:05]}  Be6 {[%clk 0:00:30]} 45. Kc1 {[%clk 0:00:05]}  Kb5 {[%clk 0:00:28]} 46. Kb2 {[%clk 0:00:05]}  Bg8 {[%clk 0:00:27]} 47. Bf3 {[%clk 0:00:05]}  Kc6 {[%clk 0:00:27]} 48. Be2 {[%clk 0:00:05]}  Bh7 {[%clk 0:00:27]} 49. Bf3 {[%clk 0:00:05]}  Be4 {[%clk 0:00:26]} 50. Be2 {[%clk 0:00:06]}  b5 {[%clk 0:00:25]} 51. Bd1 {[%clk 0:00:06]}  a5 {[%clk 0:00:25]} 52. Be2 {[%clk 0:00:06]}  Bd3 {[%clk 0:00:21]} 53. Bd1 {[%clk 0:00:07]}  Kb6 {[%clk 0:00:20]} 54. Ka2 {[%clk 0:00:07]}  Be4 {[%clk 0:00:18]} 55. Kb2 {[%clk 0:00:07]}  Ka6 {[%clk 0:00:16]} 56. Be2 {[%clk 0:00:08]}  b4 {[%clk 0:00:16]} 57. axb4 {[%clk 0:00:07]}  Kb5 {[%clk 0:00:15]} 58. bxa5 {[%clk 0:00:07]}  Kxa5 {[%clk 0:00:15]} 59. Ka3 {[%clk 0:00:08]}  Kb5 {[%clk 0:00:16]} 60. Bd1 {[%clk 0:00:08]}  Ka5 {[%clk 0:00:16]} 61. Be2 {[%clk 0:00:09]}  Kb6 {[%clk 0:00:16]} 62. Kb4 {[%clk 0:00:08]}  Kc6 {[%clk 0:00:16]} 63. Bd1 {[%clk 0:00:08]}  Kd6 {[%clk 0:00:16]} 64. Be2 {[%clk 0:00:08]}  Bg2 {[%clk 0:00:16]} 65. Bd1 {[%clk 0:00:09]}  Bf1 {[%clk 0:00:16]} 66. Bf3 {[%clk 0:00:09]}  Bd3 {[%clk 0:00:16]} 67. Bd1 {[%clk 0:00:09]}  Bf1 {[%clk 0:00:14]} 68. Bf3 {[%clk 0:00:09]}  Bh3 {[%clk 0:00:15]} 69. Bd1 {[%clk 0:00:09]}  Bg2 {[%clk 0:00:15]} 70. Be2 {[%clk 0:00:09]}  Be4 {[%clk 0:00:16]} 71. Bd1 {[%clk 0:00:09]}  Kc6 {[%clk 0:00:15]} 72. Be2 {[%clk 0:00:09]}  Kb6 {[%clk 0:00:13]} 1/2-1/2


[Site "https://www.chess.com"]

[Event "Titled Tuesday Blitz September 27 Early 2022"]
[White "Barria Zuniga, Daniel"]
[Black "Gabrielian, Artur"]
[WhiteFideId "3400816"]
[BlackFideId "4131002"]
[WhiteElo "2414"]
[BlackElo "2467"]
[Result "0-1"]
[Round "10"]
[TimeControl "180+1"]
[Date "2022.09.27"]
[WhiteClock "0:00:03"]
[BlackClock "0:00:19"]

1. d4 {[%clk 0:03:00]}  Nf6 {[%clk 0:02:59]} 2. c4 {[%clk 0:03:01]}  g6 {[%clk 0:02:58]} 3. Nc3 {[%clk 0:03:00]}  d5 {[%clk 0:02:59]} 4. Qa4+ {[%clk 0:03:00]}  Bd7 {[%clk 0:02:58]} 5. Qb3 {[%clk 0:02:59]}  Bc6 {[%clk 0:02:58]} 6. Nf3 {[%clk 0:02:52]}  Bg7 {[%clk 0:02:56]} 7. g3 {[%clk 0:02:41]}  dxc4 {[%clk 0:02:53]} 8. Qxc4 {[%clk 0:02:41]}  Bxf3 {[%clk 0:02:51]} 9. exf3 {[%clk 0:02:41]}  O-O {[%clk 0:02:50]} 10. Be3 {[%clk 0:02:38]}  c6 {[%clk 0:02:50]} 11. Bg2 {[%clk 0:02:33]}  e6 {[%clk 0:02:51]} 12. O-O {[%clk 0:02:33]}  Nbd7 {[%clk 0:02:51]} 13. f4 {[%clk 0:02:31]}  Nb6 {[%clk 0:02:48]} 14. Qb3 {[%clk 0:02:30]}  Qd7 {[%clk 0:02:43]} 15. Rac1 {[%clk 0:02:29]}  Rfd8 {[%clk 0:02:41]} 16. Rfd1 {[%clk 0:02:29]}  Nbd5 {[%clk 0:02:33]} 17. h3 {[%clk 0:02:27]}  h5 {[%clk 0:02:31]} 18. a3 {[%clk 0:02:25]}  h4 {[%clk 0:02:25]} 19. Ne2 {[%clk 0:01:42]}  hxg3 {[%clk 0:02:20]} 20. fxg3 {[%clk 0:01:42]}  Nxe3 {[%clk 0:02:18]} 21. Qxe3 {[%clk 0:01:42]}  Nd5 {[%clk 0:02:18]} 22. Qb3 {[%clk 0:01:33]}  a5 {[%clk 0:02:15]} 23. Bf3 {[%clk 0:01:30]}  a4 {[%clk 0:02:14]} 24. Qd3 {[%clk 0:01:27]}  Qe7 {[%clk 0:02:02]} 25. Kf2 {[%clk 0:01:25]}  Rd7 {[%clk 0:02:02]} 26. h4 {[%clk 0:01:25]}  Nf6 {[%clk 0:01:59]} 27. Rc4 {[%clk 0:01:21]}  Ra5 {[%clk 0:01:44]} 28. Qc2 {[%clk 0:01:20]}  Nd5 {[%clk 0:01:08]} 29. Rxa4 {[%clk 0:01:15]}  Rxa4 {[%clk 0:01:07]} 30. Qxa4 {[%clk 0:01:15]}  Nc7 {[%clk 0:01:04]} 31. Nc3 {[%clk 0:00:58]}  Qd8 {[%clk 0:01:03]} 32. Ke3 {[%clk 0:00:57]}  b5 {[%clk 0:00:55]} 33. Qb4 {[%clk 0:00:46]}  Na6 {[%clk 0:00:54]} 34. Qb3 {[%clk 0:00:42]}  Bxd4+ {[%clk 0:00:53]} 35. Ke2 {[%clk 0:00:41]}  Nc5 {[%clk 0:00:52]} 36. Qc2 {[%clk 0:00:41]}  Rd6 {[%clk 0:00:44]} 37. Ne4 {[%clk 0:00:36]}  Nxe4 {[%clk 0:00:44]} 38. Qxe4 {[%clk 0:00:37]}  c5 {[%clk 0:00:35]} 39. Qa8 {[%clk 0:00:33]}  Qxa8 {[%clk 0:00:32]} 40. Bxa8 {[%clk 0:00:34]}  Ra6 {[%clk 0:00:32]} 41. Be4 {[%clk 0:00:21]}  Bxb2 {[%clk 0:00:26]} 42. Rb1 {[%clk 0:00:21]}  Bd4 {[%clk 0:00:24]} 43. Rxb5 {[%clk 0:00:20]}  Rxa3 {[%clk 0:00:24]} 44. Bd3 {[%clk 0:00:19]}  Rc3 {[%clk 0:00:23]} 45. Rb8+ {[%clk 0:00:16]}  Kg7 {[%clk 0:00:23]} 46. Rc8 {[%clk 0:00:17]}  Ra3 {[%clk 0:00:22]} 47. Rc7 {[%clk 0:00:16]}  Ra2+ {[%clk 0:00:22]} 48. Kf3 {[%clk 0:00:14]}  Kf8 {[%clk 0:00:22]} 49. Rc8+ {[%clk 0:00:13]}  Ke7 {[%clk 0:00:22]} 50. Rc7+ {[%clk 0:00:13]}  Kf6 {[%clk 0:00:20]} 51. Bb5 {[%clk 0:00:12]}  Ra3+ {[%clk 0:00:18]} 52. Kg4 {[%clk 0:00:11]}  Bf2 {[%clk 0:00:18]} 53. f5 {[%clk 0:00:08]}  exf5+ {[%clk 0:00:17]} 54. Kh3 {[%clk 0:00:05]}  Bxg3 {[%clk 0:00:18]} 55. Rb7 {[%clk 0:00:04]}  Be5+ {[%clk 0:00:17]} 56. Kg2 {[%clk 0:00:04]}  Ra2+ {[%clk 0:00:17]} 57. Kf1 {[%clk 0:00:04]}  Rb2 {[%clk 0:00:17]} 58. Bc6 {[%clk 0:00:04]}  Rxb7 {[%clk 0:00:18]} 59. Bxb7 {[%clk 0:00:04]}  c4 {[%clk 0:00:18]} 60. Ba6 {[%clk 0:00:04]}  c3 {[%clk 0:00:19]} 61. Bd3 {[%clk 0:00:05]}  Kg7 {[%clk 0:00:19]} 62. Kg2 {[%clk 0:00:05]}  f6 {[%clk 0:00:19]} 63. Kh3 {[%clk 0:00:04]}  Kh6 {[%clk 0:00:19]} 64. Bc2 {[%clk 0:00:04]}  f4 {[%clk 0:00:20]} 65. Kg4 {[%clk 0:00:03]}  f5+ {[%clk 0:00:20]} 66. Kh3 {[%clk 0:00:03]}  Bf6 {[%clk 0:00:20]} 67. Bd1 {[%clk 0:00:03]}  Kg7 {[%clk 0:00:19]} 68. Bc2 {[%clk 0:00:03]}  f3 {[%clk 0:00:19]} 69. Bd1 {[%clk 0:00:03]}  f2 {[%clk 0:00:19]} 70. Kg2 {[%clk 0:00:03]}  Bxh4 {[%clk 0:00:19]} 0-1


[Site "https://www.chess.com"]

[Event "Titled Tuesday Blitz September 27 Early 2022"]
[White "Bettalli, Francesco"]
[Black "Itkis, Boris"]
[WhiteFideId "2816453"]
[BlackFideId "1209167"]
[WhiteElo "2216"]
[BlackElo "2207"]
[Result "1/2-1/2"]
[Round "10"]
[TimeControl "180+1"]
[Date "2022.09.27"]
[WhiteClock "0:02:08"]
[BlackClock "0:00:17"]

1. d4 {[%clk 0:03:00]}  Nf6 {[%clk 0:02:59]} 2. Nc3 {[%clk 0:03:01]}  d5 {[%clk 0:02:56]} 3. Bg5 {[%clk 0:03:01]}  c6 {[%clk 0:02:55]} 4. Bxf6 {[%clk 0:03:01]}  exf6 {[%clk 0:02:53]} 5. e4 {[%clk 0:03:01]}  dxe4 {[%clk 0:02:45]} 6. Nxe4 {[%clk 0:03:02]}  Be7 {[%clk 0:02:38]} 7. Nf3 {[%clk 0:03:02]}  O-O {[%clk 0:02:38]} 8. Bd3 {[%clk 0:02:59]}  Bg4 {[%clk 0:02:25]} 9. c3 {[%clk 0:02:57]}  Nd7 {[%clk 0:02:20]} 10. h3 {[%clk 0:02:56]}  Bh5 {[%clk 0:02:16]} 11. Ng3 {[%clk 0:02:57]}  Bg6 {[%clk 0:02:14]} 12. Nf5 {[%clk 0:02:57]}  Re8 {[%clk 0:02:12]} 13. O-O {[%clk 0:02:57]}  Nf8 {[%clk 0:02:10]} 14. Qb3 {[%clk 0:02:56]}  Qb6 {[%clk 0:02:03]} 15. Rae1 {[%clk 0:02:55]}  Qxb3 {[%clk 0:01:57]} 16. axb3 {[%clk 0:02:56]}  Bxf5 {[%clk 0:01:57]} 17. Bxf5 {[%clk 0:02:55]}  Bd6 {[%clk 0:01:57]} 18. Nd2 {[%clk 0:02:55]}  g6 {[%clk 0:01:53]} 19. Bd3 {[%clk 0:02:55]}  Kg7 {[%clk 0:01:51]} 20. b4 {[%clk 0:02:54]}  Ne6 {[%clk 0:01:49]} 21. Nc4 {[%clk 0:02:53]}  Bc7 {[%clk 0:01:47]} 22. g3 {[%clk 0:02:53]}  Ng5 {[%clk 0:01:45]} 23. Kg2 {[%clk 0:02:53]}  f5 {[%clk 0:01:40]} 24. h4 {[%clk 0:02:53]}  Ne4 {[%clk 0:01:38]} 25. Bxe4 {[%clk 0:02:52]}  fxe4 {[%clk 0:01:38]} 26. Re2 {[%clk 0:02:53]}  Re7 {[%clk 0:01:29]} 27. Rfe1 {[%clk 0:02:54]}  Rae8 {[%clk 0:01:29]} 28. Nd2 {[%clk 0:02:51]}  f5 {[%clk 0:01:28]} 29. Nb3 {[%clk 0:02:51]}  b6 {[%clk 0:01:26]} 30. Nc1 {[%clk 0:02:51]}  Kf6 {[%clk 0:01:21]} 31. b3 {[%clk 0:02:51]}  h6 {[%clk 0:01:20]} 32. f3 {[%clk 0:02:52]}  exf3+ {[%clk 0:01:19]} 33. Kxf3 {[%clk 0:02:52]}  Rxe2 {[%clk 0:01:19]} 34. Rxe2 {[%clk 0:02:53]}  Rxe2 {[%clk 0:01:19]} 35. Nxe2 {[%clk 0:02:54]}  g5 {[%clk 0:01:18]} 36. hxg5+ {[%clk 0:02:55]}  hxg5 {[%clk 0:01:19]} 37. c4 {[%clk 0:02:55]}  Bd6 {[%clk 0:01:10]} 38. b5 {[%clk 0:02:55]}  cxb5 {[%clk 0:01:10]} 39. cxb5 {[%clk 0:02:56]}  Bb4 {[%clk 0:01:06]} 40. g4 {[%clk 0:02:51]}  f4 {[%clk 0:00:38]} 41. Ke4 {[%clk 0:02:49]}  Ke6 {[%clk 0:00:38]} 42. d5+ {[%clk 0:02:47]}  Kd6 {[%clk 0:00:38]} 43. Nd4 {[%clk 0:02:47]}  Bc3 {[%clk 0:00:35]} 44. Nc6 {[%clk 0:02:41]}  Kc5 {[%clk 0:00:33]} 45. Nxa7 {[%clk 0:02:41]}  Bf6 {[%clk 0:00:28]} 46. Nc8 {[%clk 0:02:22]}  Kxb5 {[%clk 0:00:26]} 47. d6 {[%clk 0:02:22]}  Kc6 {[%clk 0:00:24]} 48. d7 {[%clk 0:02:17]}  Kxd7 {[%clk 0:00:17]} 49. Nxb6+ {[%clk 0:02:18]}  Kc6 {[%clk 0:00:17]} 50. Nd5 {[%clk 0:02:12]}  Bd8 {[%clk 0:00:17]} 51. Nc3 {[%clk 0:02:09]}  Kc5 {[%clk 0:00:17]} 52. Nd5 {[%clk 0:02:08]}  Kb5 {[%clk 0:00:16]} 53. Nxf4 {[%clk 0:02:06]}  gxf4 {[%clk 0:00:16]} 54. Kxf4 {[%clk 0:02:06]}  Kb4 {[%clk 0:00:16]} 55. g5 {[%clk 0:02:07]}  Bxg5+ {[%clk 0:00:16]} 56. Kxg5 {[%clk 0:02:08]}  Kxb3 {[%clk 0:00:17]} 1/2-1/2


[Site "https://www.chess.com"]

[Event "Titled Tuesday Blitz September 27 Early 2022"]
[White "Broca Jimenez, Fernando"]
[Black "Namitbir Singh Walia"]
[WhiteFideId "5104742"]
[BlackFideId "35071068"]
[WhiteElo "2062"]
[BlackElo "1664"]
[Result "0-1"]
[Round "10"]
[TimeControl "180+1"]
[Date "2022.09.27"]
[WhiteClock "0:00:25"]
[BlackClock "0:00:26"]

1. e4 {[%clk 0:03:00]}  c5 {[%clk 0:03:00]} 2. c3 {[%clk 0:02:58]}  Nf6 {[%clk 0:02:55]} 3. e5 {[%clk 0:02:58]}  Nd5 {[%clk 0:02:56]} 4. d4 {[%clk 0:02:58]}  cxd4 {[%clk 0:02:53]} 5. Nf3 {[%clk 0:02:58]}  d6 {[%clk 0:02:39]} 6. Bc4 {[%clk 0:02:51]}  dxe5 {[%clk 0:02:19]} 7. Nxe5 {[%clk 0:02:49]}  e6 {[%clk 0:02:16]} 8. cxd4 {[%clk 0:02:46]}  Nb6 {[%clk 0:02:11]} 9. Bb3 {[%clk 0:02:45]}  Be7 {[%clk 0:02:08]} 10. O-O {[%clk 0:02:42]}  O-O {[%clk 0:02:09]} 11. Nc3 {[%clk 0:02:41]}  N8d7 {[%clk 0:02:09]} 12. Nxd7 {[%clk 0:02:36]}  Bxd7 {[%clk 0:02:09]} 13. d5 {[%clk 0:02:37]}  exd5 {[%clk 0:02:07]} 14. Nxd5 {[%clk 0:02:36]}  Nxd5 {[%clk 0:02:01]} 15. Bxd5 {[%clk 0:02:37]}  Bc6 {[%clk 0:01:15]} 16. Bxc6 {[%clk 0:02:33]}  bxc6 {[%clk 0:01:16]} 17. Be3 {[%clk 0:02:22]}  Bf6 {[%clk 0:01:14]} 18. Qc2 {[%clk 0:02:19]}  Qd5 {[%clk 0:01:04]} 19. Rfd1 {[%clk 0:02:14]}  Qb5 {[%clk 0:01:03]} 20. Rab1 {[%clk 0:02:11]}  a5 {[%clk 0:01:00]} 21. Rdc1 {[%clk 0:01:50]}  Rfc8 {[%clk 0:01:00]} 22. Qc5 {[%clk 0:01:47]}  h6 {[%clk 0:00:59]} 23. b3 {[%clk 0:01:41]}  a4 {[%clk 0:00:56]} 24. b4 {[%clk 0:01:38]}  a3 {[%clk 0:00:53]} 25. g3 {[%clk 0:01:27]}  Bb2 {[%clk 0:00:53]} 26. Rc4 {[%clk 0:01:23]}  Rd8 {[%clk 0:00:45]} 27. Qxc6 {[%clk 0:01:08]}  Qf5 {[%clk 0:00:44]} 28. Re1 {[%clk 0:00:44]}  Rac8 {[%clk 0:00:36]} 29. Qe4 {[%clk 0:00:42]}  Qb5 {[%clk 0:00:28]} 30. Bc5 {[%clk 0:00:34]}  Re8 {[%clk 0:00:28]} 31. Qb1 {[%clk 0:00:33]}  Rxe1+ {[%clk 0:00:28]} 32. Qxe1 {[%clk 0:00:31]}  Qxc4 {[%clk 0:00:29]} 33. Qe7 {[%clk 0:00:28]}  Qxa2 {[%clk 0:00:27]} 34. Qd7 {[%clk 0:00:27]}  Qe6 {[%clk 0:00:28]} 35. Qd2 {[%clk 0:00:25]}  Re8 {[%clk 0:00:26]} 0-1


[Site "https://www.chess.com"]

[Event "Titled Tuesday Blitz September 27 Early 2022"]
[White "Bryakin, Mikhail"]
[Black "Ronka, Erik"]
[WhiteFideId "4165314"]
[BlackFideId "505080"]
[WhiteElo "2357"]
[BlackElo "2264"]
[Result "1-0"]
[Round "10"]
[TimeControl "180+1"]
[Date "2022.09.27"]
[WhiteClock "0:00:03"]
[BlackClock "0:00:01"]

1. e4 {[%clk 0:02:41]}  c5 {[%clk 0:02:59]} 2. Nf3 {[%clk 0:02:35]}  e6 {[%clk 0:03:00]} 3. c3 {[%clk 0:02:35]}  Nf6 {[%clk 0:03:00]} 4. e5 {[%clk 0:02:26]}  Nd5 {[%clk 0:03:00]} 5. d4 {[%clk 0:02:26]}  cxd4 {[%clk 0:03:01]} 6. cxd4 {[%clk 0:02:26]}  d6 {[%clk 0:03:02]} 7. Bc4 {[%clk 0:02:24]}  Be7 {[%clk 0:03:02]} 8. O-O {[%clk 0:02:24]}  O-O {[%clk 0:03:02]} 9. Nc3 {[%clk 0:02:24]}  Nxc3 {[%clk 0:02:58]} 10. bxc3 {[%clk 0:02:25]}  dxe5 {[%clk 0:02:57]} 11. Nxe5 {[%clk 0:02:25]}  Nd7 {[%clk 0:02:58]} 12. f4 {[%clk 0:02:16]}  Qc7 {[%clk 0:02:47]} 13. Qe2 {[%clk 0:02:15]}  b6 {[%clk 0:02:46]} 14. Rf3 {[%clk 0:02:13]}  Bb7 {[%clk 0:02:41]} 15. Rh3 {[%clk 0:02:13]}  Nf6 {[%clk 0:02:36]} 16. Bd3 {[%clk 0:02:10]}  g6 {[%clk 0:02:24]} 17. Bd2 {[%clk 0:02:00]}  Rac8 {[%clk 0:02:19]} 18. Rf1 {[%clk 0:01:55]}  Nd7 {[%clk 0:01:38]} 19. Ng4 {[%clk 0:01:21]}  Qc6 {[%clk 0:01:29]} 20. Rf2 {[%clk 0:01:19]}  Qd5 {[%clk 0:01:27]} 21. f5 {[%clk 0:01:15]}  gxf5 {[%clk 0:01:02]} 22. Nh6+ {[%clk 0:01:13]}  Kh8 {[%clk 0:01:01]} 23. Qh5 {[%clk 0:01:04]}  Nf6 {[%clk 0:00:47]} 24. Nxf7+ {[%clk 0:00:55]}  Kg7 {[%clk 0:00:44]} 25. Qh6+ {[%clk 0:00:56]}  Kxf7 {[%clk 0:00:44]} 26. Bf4 {[%clk 0:00:50]}  Rg8 {[%clk 0:00:42]} 27. Bf1 {[%clk 0:00:44]}  Ke8 {[%clk 0:00:32]} 28. Be5 {[%clk 0:00:42]}  Rg6 {[%clk 0:00:31]} 29. Qh4 {[%clk 0:00:37]}  Kd7 {[%clk 0:00:28]} 30. Bxf6 {[%clk 0:00:35]}  Bxf6 {[%clk 0:00:27]} 31. Qxh7+ {[%clk 0:00:36]}  Rg7 {[%clk 0:00:27]} 32. Qh6 {[%clk 0:00:37]}  Rcg8 {[%clk 0:00:16]} 33. Rg3 {[%clk 0:00:37]}  Rxg3 {[%clk 0:00:15]} 34. hxg3 {[%clk 0:00:38]}  Be7 {[%clk 0:00:14]} 35. a4 {[%clk 0:00:33]}  a6 {[%clk 0:00:14]} 36. Kh2 {[%clk 0:00:28]}  Rf8 {[%clk 0:00:07]} 37. c4 {[%clk 0:00:28]}  Qd6 {[%clk 0:00:07]} 38. c5 {[%clk 0:00:25]}  Qd5 {[%clk 0:00:06]} 39. Rc2 {[%clk 0:00:19]}  Bc6 {[%clk 0:00:05]} 40. Bc4 {[%clk 0:00:20]}  Qe4 {[%clk 0:00:05]} 41. Re2 {[%clk 0:00:20]}  Qxd4 {[%clk 0:00:03]} 42. Qxe6+ {[%clk 0:00:20]}  Kc7 {[%clk 0:00:03]} 43. Qxe7+ {[%clk 0:00:21]}  Bd7 {[%clk 0:00:03]} 44. Qxf8 {[%clk 0:00:21]}  Qxc4 {[%clk 0:00:04]} 45. Qd6+ {[%clk 0:00:21]}  Kc8 {[%clk 0:00:04]} 46. Re7 {[%clk 0:00:22]}  Qxa4 {[%clk 0:00:01]} 47. Qxb6 {[%clk 0:00:20]}  Qc6 {[%clk 0:00:01]} 48. Qxc6+ {[%clk 0:00:13]}  Bxc6 {[%clk 0:00:02]} 49. Ra7 {[%clk 0:00:13]}  Bb5 {[%clk 0:00:02]} 50. g4 {[%clk 0:00:13]}  Kb8 {[%clk 0:00:03]} 51. Re7 {[%clk 0:00:13]}  fxg4 {[%clk 0:00:03]} 52. Kg3 {[%clk 0:00:13]}  a5 {[%clk 0:00:02]} 53. Kxg4 {[%clk 0:00:14]}  a4 {[%clk 0:00:03]} 54. Kf4 {[%clk 0:00:12]}  a3 {[%clk 0:00:03]} 55. Re3 {[%clk 0:00:13]}  a2 {[%clk 0:00:02]} 56. Ra3 {[%clk 0:00:13]}  Bc4 {[%clk 0:00:03]} 57. Ke5 {[%clk 0:00:11]}  Kc7 {[%clk 0:00:04]} 58. g4 {[%clk 0:00:09]}  Kc6 {[%clk 0:00:04]} 59. Kd4 {[%clk 0:00:09]}  Bf7 {[%clk 0:00:03]} 60. g5 {[%clk 0:00:08]}  Kb5 {[%clk 0:00:03]} 61. Ra7 {[%clk 0:00:08]}  Kb4 {[%clk 0:00:01]} 62. c6 {[%clk 0:00:03]} 1-0


[Site "https://www.chess.com"]

[Event "Titled Tuesday Blitz September 27 Early 2022"]
[White "Carrasco Miranda, Andres"]
[Black "Sadykov, Ramil"]
[WhiteFideId "3405990"]
[BlackFideId "24113590"]
[WhiteElo "2177"]
[BlackElo "2243"]
[Result "0-1"]
[Round "10"]
[TimeControl "180+1"]
[Date "2022.09.27"]
[WhiteClock "0:00:01"]
[BlackClock "0:00:04"]

1. d4 {[%clk 0:03:00]}  Nf6 {[%clk 0:02:59]} 2. c4 {[%clk 0:02:59]}  c5 {[%clk 0:03:00]} 3. d5 {[%clk 0:02:58]}  b5 {[%clk 0:03:01]} 4. cxb5 {[%clk 0:02:59]}  a6 {[%clk 0:03:01]} 5. bxa6 {[%clk 0:03:00]}  g6 {[%clk 0:03:01]} 6. Nc3 {[%clk 0:03:00]}  Bg7 {[%clk 0:03:00]} 7. e4 {[%clk 0:02:58]}  O-O {[%clk 0:03:00]} 8. Nf3 {[%clk 0:02:59]}  Qa5 {[%clk 0:03:01]} 9. Bd2 {[%clk 0:02:58]}  Bxa6 {[%clk 0:02:58]} 10. Bxa6 {[%clk 0:02:52]}  Qxa6 {[%clk 0:02:59]} 11. Qe2 {[%clk 0:02:52]}  d6 {[%clk 0:02:59]} 12. Qxa6 {[%clk 0:02:50]}  Nxa6 {[%clk 0:02:58]} 13. O-O {[%clk 0:02:50]}  Rfb8 {[%clk 0:02:56]} 14. b3 {[%clk 0:02:49]}  Nb4 {[%clk 0:02:47]} 15. Rfd1 {[%clk 0:02:33]}  Nxe4 {[%clk 0:02:42]} 16. Nxe4 {[%clk 0:02:30]}  Bxa1 {[%clk 0:02:43]} 17. Rxa1 {[%clk 0:02:30]}  Rxa2 {[%clk 0:02:40]} 18. Rb1 {[%clk 0:02:11]}  Nxd5 {[%clk 0:02:35]} 19. h4 {[%clk 0:02:08]}  c4 {[%clk 0:02:30]} 20. b4 {[%clk 0:02:02]}  f5 {[%clk 0:02:19]} 21. Nc3 {[%clk 0:02:01]}  Nxc3 {[%clk 0:02:15]} 22. Bxc3 {[%clk 0:02:02]}  e5 {[%clk 0:02:07]} 23. Rd1 {[%clk 0:01:58]}  Rb6 {[%clk 0:02:03]} 24. h5 {[%clk 0:01:57]}  gxh5 {[%clk 0:02:00]} 25. Nh4 {[%clk 0:01:37]}  Rc2 {[%clk 0:01:47]} 26. Be1 {[%clk 0:01:24]}  f4 {[%clk 0:01:11]} 27. Nf5 {[%clk 0:01:22]}  e4 {[%clk 0:01:09]} 28. Kh2 {[%clk 0:01:18]}  c3 {[%clk 0:01:01]} 29. Ne7+ {[%clk 0:01:13]}  Kf7 {[%clk 0:01:00]} 30. Nd5 {[%clk 0:01:14]}  Rc6 {[%clk 0:00:57]} 31. b5 {[%clk 0:01:09]}  Rc5 {[%clk 0:00:53]} 32. b6 {[%clk 0:01:09]}  Ke6 {[%clk 0:00:34]} 33. b7 {[%clk 0:01:02]}  Rb2 {[%clk 0:00:32]} 34. Nxc3 {[%clk 0:01:01]}  Rc4 {[%clk 0:00:14]} 35. Rb1 {[%clk 0:00:37]}  Rcb4 {[%clk 0:00:11]} 36. Rxb2 {[%clk 0:00:18]}  Rxb2 {[%clk 0:00:10]} 37. Nxe4 {[%clk 0:00:19]}  Rxb7 {[%clk 0:00:10]} 38. Ng5+ {[%clk 0:00:18]}  Kf5 {[%clk 0:00:07]} 39. Nf3 {[%clk 0:00:16]}  Rb2 {[%clk 0:00:07]} 40. Kg1 {[%clk 0:00:11]}  Ke4 {[%clk 0:00:06]} 41. Kf1 {[%clk 0:00:10]}  h6 {[%clk 0:00:05]} 42. Bd2 {[%clk 0:00:09]}  d5 {[%clk 0:00:03]} 43. Ke2 {[%clk 0:00:09]}  d4 {[%clk 0:00:04]} 44. Kd1 {[%clk 0:00:07]}  d3 {[%clk 0:00:04]} 45. Be1 {[%clk 0:00:03]}  Rb8 {[%clk 0:00:04]} 46. Kd2 {[%clk 0:00:02]}  Rg8 {[%clk 0:00:03]} 47. g3 {[%clk 0:00:02]}  fxg3 {[%clk 0:00:03]} 48. fxg3 {[%clk 0:00:01]}  Rc8 {[%clk 0:00:04]} 0-1


[Site "https://www.chess.com"]